[Event "Wuerttemberg Rapid Teams 2024"]
[Site "B?blingen, Germany"]
[Date "2024.04.13"]
[Round "4.31"]
[White "Schmid, Tim"]
[Black "Freiherr von Hauff, Christopher"]
[Result "0-1"]
[ECO "C85"]
[WhiteElo "1765"]
[BlackElo "1960"]
[Annotator "TA"]
[PlyCount "140"]
[EventDate "2024.04.13"]
[EventType "team-tourn"]
[SourceTitle "playchess.com"]
[Source "ChessBase"]
[SourceQuality "1"]
[TimeControl "900+5"]

{[%evp 11,140,21,32,0,0,-14,1,-29,-31,-29,-17,-16,-6,-8,-14,-15,0,-21,-16,-8,-13,-14,-6,-6,0,0,0,0,0,0,0,0,0,0,0,0,60,2,0,-90,-88,-99,-95,-107,-107,-156,-154,-194,-199,-176,-190,-241,-227,-234,-243,-253,-245,-252,-225,-247,-231,-227,-223,-246,-109,-99,-87,-90,-90,-89,-90,-91,-90,-90,-91,-109,-56,-77,-76,-109,-56,-56,-56,-137,-56,-181,0,0,0,0,0,0,0,-8,0,-114,0,-591,0,0,0,-596,-596,-582,-534,-516,-503,-29979,-29980,-29980,-29981,-29981,-29978,-29982,-29983,-29983,-29982,-29982,-29983,-29983,-29981,-29981,-29982,-29982,-29983,-29985,-29986,-29986,-29987,-29987,-29988]} 1. e4 {[%emt 0:00:01]} e5 {[%emt 0:00:01]} 2. Nf3 {[%emt 0:00:02]} Nc6 {[%emt 0:00:01]} 3. Bb5 {[%emt 0:00:01]} a6 {[%emt 0:00:02]} 4. Ba4 {[%emt 0:00:01]} Nf6 {[%emt 0:00:01]} 5. O-O {[%emt 0:00:02]} Be7 {[%emt 0:00:01]} 6. Bxc6 {[%emt 0:00:11]} dxc6 {[%emt 0:00:02]} 7. Nxe5 {[%emt 0:00:01]} Nxe4 {[%emt 0:01:03]} 8. Qf3 {[%emt 0:01:09][%csl Ge5][%cal Rf3f7]} Nf6 {[%emt 0:00:05]} 9. c3 {[%emt 0:00:18] The position is equal.} O-O {[%emt 0:00:12]} 10. d4 {[%emt 0:00:33]} Be6 {[%emt 0:00:18][%cal Bc8e6,Be6d5,Bd5e4,Be4f5][%mdl 32]} 11. Be3 {[%emt 0:00:49]} Bd5 {[%emt 0:00:39]} 12. Qe2 {[%emt 0:00:16]} Nd7 {[%emt 0:02:24]} 13. c4 {[%emt 0:00:56]} Be4 {[%emt 0:00:07]} 14. Nxd7 {[%emt 0:00:32]} Qxd7 {[%emt 0:00:01]} 15. Nc3 {[%emt 0:00:34]} Bf5 {[%emt 0:00:07]} 16. h3 {[%emt 0:01:10]} Bf6 {[%emt 0:00:26]} 17. Rad1 {[%emt 0:00:13]} h6 {[%emt 0:00:26]} 18. Qf3 {[%emt 0:00:09]} Rad8 {[%emt 0:01:17]} 19. Ne4 {[%emt 0:01:14]} Bxe4 {[%emt 0:00:45]} 20. Qxe4 {[%emt 0:00:03]} Rfe8 {[%emt 0:00:02]} 21. Qf3 {[%emt 0:00:37]} Qe6 {[%emt 0:00:13]} 22. b3 {[%emt 0:01:16]} Qe4 {[%emt 0:00:02]} 23. Qg3 {[%emt 0:01:03]} Bxd4 {[%emt 0:03:02]} (23... Rd6 $11) 24. Qxc7 {[%emt 0:01:16]} (24. Rxd4 $14 Rxd4 25. Bxd4 Qxd4 26. Qxc7) 24... c5 $11 {[%emt 0:01:04]} 25. Qf4 {[%emt 0:01:29]} (25. Rde1 $11 {keeps the balance.}) 25... Qxf4 $17 {[%emt 0:00:21]} (25... Bxe3 $2 {perishes.} 26. Qxe4 Bxf2+ 27. Kxf2 $18) 26. Bxf4 {[%emt 0:00:13]} Re2 {[%emt 0:00:01][%cal Oe2f2]} 27. Rd2 {[%emt 0:00:16]} Rde8 {[%emt 0:00:19] Black is more active.} 28. Rxe2 {[%emt 0:02:40]} (28. Rfd1 $142) 28... Rxe2 {[%emt 0:00:02]} 29. Be3 {[%emt 0:00:07]} Bxe3 {[%emt 0:01:41]} ({But not} 29... Rxa2 30. Bxd4 cxd4 31. Rd1 $17) 30. fxe3 {[%emt 0:00:02]} Rxa2 $19 {[%emt 0:01:00][%mdl 4096] Endgame. KR-KR} 31. Rf5 {[%emt 0:00:03]} (31. Rd1 {is a better defense.}) 31... b6 {[%emt 0:00:08]} 32. Rd5 {[%emt 0:00:17]} Rb2 {[%emt 0:00:01]} 33. Rd3 {[%emt 0:00:02]} Kf8 {[%emt 0:00:04]} 34. Kh2 {[%emt 0:00:02]} Ke7 {[%emt 0:00:03]} 35. Kg3 {[%emt 0:00:02]} Ke6 {[%emt 0:00:05]} 36. Kf3 {[%emt 0:00:05]} b5 {[%emt 0:00:34]} 37. g4 {[%emt 0:00:13]} bxc4 {[%emt 0:00:10]} (37... b4 $19 {is more deadly. aiming for ...a5.} 38. Ke4 a5) 38. bxc4 $17 {[%emt 0:00:02]} Rb4 {[%emt 0:00:24]} 39. Ra3 {[%emt 0:00:02]} Rxc4 {[%emt 0:00:11]} 40. Rxa6+ {[%emt 0:00:02]} Ke5 $1 {[%emt 0:00:03]} 41. Ra7 {[%emt 0:00:03]} Kf6 $1 {[%emt 0:00:05]} 42. Ra6+ {[%emt 0:00:02]} Kg5 $1 {[%emt 0:00:07]} 43. Ra7 {[%emt 0:00:02]} Kg6 {[%emt 0:00:02]} (43... Rc1 $17 {...Kh4 would now be deadly.} 44. Ke2 Rc2+ 45. Kf3 Kg6) 44. Ra6+ {[%emt 0:00:01]} f6 {[%emt 0:00:07]} 45. Rc6 {[%emt 0:00:11]} Rc1 {[%emt 0:00:21]} (45... h5 $17 46. Rc8 hxg4+ 47. hxg4 Kg5) 46. h4 $15 {[%emt 0:00:13]} c4 {[%emt 0:00:08]} 47. Ke4 {[%emt 0:00:04]} (47. h5+ $15 Kg5 48. Rc7) 47... Rg1 {[%emt 0:00:16]} ({Better is} 47... h5 $17 48. gxh5+ Kxh5) 48. Kf4 {[%emt 0:00:01] [#]} (48. Kf3 $15) 48... Rc1 $2 {[%emt 0:00:06]} (48... h5 $1 $19 49. g5 Rg4+ 50. Kf3 Rxh4 51. gxf6 gxf6) 49. h5+ {[%emt 0:00:09]} Kf7 {[%emt 0:00:05]} 50. Rc7+ {[%emt 0:00:03]} Kg8 {[%emt 0:00:06]} 51. Ke4 {[%emt 0:00:01]} c3 {[%emt 0:00:15]} 52. Kd3 {[%emt 0:00:07]} Rd1+ {[%emt 0:00:09]} 53. Ke2 {[%emt 0:00:02] [#]} (53. Ke4 $11) 53... Rd2+ {[%emt 0:00:02]} (53... Rg1 $1 $17 {[%cal Rg1g4]} 54. Rc8+ Kh7) 54. Ke1 $2 {[%emt 0:00:05][%mdl 8192]} (54. Kf3 $11 {and White is okay.}) 54... Rd3 $2 {[%emt 0:00:02]} ({Black should play} 54... Rg2 $19 55. Rxc3 Rxg4) 55. Ke2 $11 {[%emt 0:00:02]} Rd2+ {[%emt 0:00:01][%mdl 8192]} (55... Rd5 $11) 56. Ke1 $19 {[%emt 0:00:00] Black converts the advantage convincingly.} Rg2 {[%emt 0:00:02]} 57. Rxc3 {[%emt 0:00:06]} Rxg4 {[%emt 0:00:00]} 58. Rc5 {[%emt 0:00:02]} Rg5 {[%emt 0:00:03]} 59. Rxg5 {[%emt 0:00:11]} (59. Rc7 $19) 59... hxg5 {[%emt 0:00:19] K3P-KPP. Black mates.} 60. Kf2 {[%emt 0:00:01]} Kf7 {[%emt 0:00:07]} 61. Kg3 {[%emt 0:00:01]} Ke6 {[%emt 0:00:01]} 62. Kf3 {[%emt 0:00:14]} Ke5 {[%emt 0:00:07]} 63. e4 {[%emt 0:00:19] [#]} g4+ $1 {[%emt 0:00:01][%mdl 512]} 64. Kg3 {[%emt 0:00:07]} (64. Ke3 f5) 64... Kxe4 {[%emt 0:00:02]} 65. Kxg4 {[%emt 0:00:02] KPP-KP} Ke5 {[%emt 0:00:16]} 66. Kg3 {[%emt 0:00:13]} Kf5 {[%emt 0:00:02]} 67. Kh4 {[%emt 0:00:01]} Kf4 {[%emt 0:00:02]} 68. h6 {[%emt 0:00:09]} gxh6 {[%emt 0:00:03]} 69. Kh5 {[%emt 0:00:01]} f5 {[%emt 0:00:02]} 70. Kxh6 {[%emt 0:00:01]} Kg4 {[%emt 0:00:01] Weighted Error Value: White=0.43/Black=0.25 (precise) .  Loses game:     	White=1     	---        Missed win:     	---       	Black=2      Mistake:       	White=8     	Black=7      Inaccurate:     	White=2     	---        OK:         	White=21    	Black=17     Best:        	White=1     	Black=5      Strong:       	---       	Black=3} 0-1

[Event "Wuerttemberg Rapid Teams 2024"]
[Site "B?blingen, Germany"]
[Date "2024.04.13"]
[Round "4.33"]
[White "Belica, Matej"]
[Black "Abel, Manfred"]
[Result "1-0"]
[ECO "A36"]
[WhiteElo "2173"]
[BlackElo "1881"]
[Annotator "RC"]
[PlyCount "101"]
[EventDate "2024.04.13"]
[EventType "team-tourn"]
[SourceTitle "playchess.com"]
[Source "ChessBase"]
[SourceQuality "1"]
[TimeControl "900+5"]

1. c4 {[%emt 0:00:04]} c5 {[%emt 0:00:01]} 2. Nf3 {[%emt 0:00:03]} Nc6 {[%emt 0:00:05]} 3. g3 {[%emt 0:00:02]} g6 {[%emt 0:00:01]} 4. Bg2 {[%emt 0:00:02]} Bg7 {[%emt 0:00:01]} 5. e4 {[%emt 0:00:13]} e6 {[%emt 0:00:09]} 6. O-O {[%emt 0:00:05]} Nge7 {[%emt 0:00:01]} 7. Nc3 {[%emt 0:00:12]} O-O {[%emt 0:00:04]} 8. d3 {[%emt 0:00:25]} b6 {[%emt 0:00:09]} 9. Ng5 {[%emt 0:00:11]} f6 {[%emt 0:00:53]} 10. Nh3 {[%emt 0:00:03]} Bb7 {[%emt 0:00:17]} 11. f4 {[%emt 0:00:05]} Nd4 {[%emt 0:00:34]} 12. Rb1 {[%emt 0:00:57]} d5 {[%emt 0:00:15]} 13. cxd5 {[%emt 0:00:10]} exd5 {[%emt 0:00:01]} 14. Nf2 {[%emt 0:00:36]} Qd7 {[%emt 0:01:05]} 15. b4 {[%emt 0:00:15]} Rad8 {[%emt 0:02:06]} 16. bxc5 {[%emt 0:00:42]} bxc5 {[%emt 0:00:04]} 17. Ba3 {[%emt 0:00:05]} Ne6 {[%emt 0:01:15]} 18. Qa4 {[%emt 0:01:00]} Bc6 {[%emt 0:02:18]} 19. Qa5 {[%emt 0:00:34]} dxe4 {[%emt 0:00:03]} 20. Ncxe4 {[%emt 0:00:42]} Nf5 {[%emt 0:01:35]} 21. Nxc5 {[%emt 0:00:45]} Nxc5 {[%emt 0:00:19]} 22. Bxc5 {[%emt 0:00:10]} Bxg2 {[%emt 0:00:12]} 23. Kxg2 {[%emt 0:00:33]} Qd5+ {[%emt 0:00:35]} 24. Kg1 {[%emt 0:00:08]} Ne3 {[%emt 0:00:13]} 25. Ne4 {[%emt 0:01:19]} Nxf1 {[%emt 0:00:08]} 26. Rxf1 {[%emt 0:00:13]} Rfe8 {[%emt 0:00:22]} 27. Qxa7 {[%emt 0:00:12]} f5 {[%emt 0:00:25]} 28. Ng5 {[%emt 0:00:31]} Re2 {[%emt 0:00:55]} 29. Bf2 {[%emt 0:00:33]} Rxa2 {[%emt 0:00:10]} 30. Qe7 {[%emt 0:00:15]} h6 {[%emt 0:00:30]} 31. Ne6 {[%emt 0:00:08]} Rd7 {[%emt 0:01:09]} 32. Qe8+ {[%emt 0:00:54]} Kh7 {[%emt 0:00:01]} 33. Nf8+ {[%emt 0:01:30]} Bxf8 {[%emt 0:00:03]} 34. Qxf8 {[%emt 0:00:02]} Ra8 {[%emt 0:00:14]} 35. Qf6 {[%emt 0:00:31]} Qxd3 {[%emt 0:00:05]} 36. Qc6 {[%emt 0:00:14]} Qd5 {[%emt 0:00:23]} 37. Qc3 {[%emt 0:00:09]} Ra2 {[%emt 0:00:11]} 38. Qe3 {[%emt 0:00:12]} h5 {[%emt 0:00:07]} 39. Qe8 {[%emt 0:00:13]} Qf7 {[%emt 0:00:06]} 40. Qe3 {[%emt 0:00:06]} Rdd2 {[%emt 0:00:08]} 41. Qc5 {[%emt 0:00:11]} Qd7 {[%emt 0:00:06]} 42. Qb6 {[%emt 0:00:12]} Qe7 {[%emt 0:00:16]} 43. Qb3 {[%emt 0:00:23]} Qd7 {[%emt 0:00:06]} 44. Qe3 {[%emt 0:00:06]} Qb7 {[%emt 0:00:07]} 45. Qc5 {[%emt 0:00:06]} Rac2 {[%emt 0:00:18]} 46. Qe3 {[%emt 0:00:07]} Re2 {[%emt 0:00:04]} 47. Qd4 {[%emt 0:00:08]} Qe7 {[%emt 0:00:15]} 48. Qb6 {[%emt 0:00:10]} h4 {[%emt 0:00:02]} 49. gxh4 {[%emt 0:00:17]} Qxh4 {[%emt 0:00:07]} 50. Qb7+ {[%emt 0:00:15]} Kh6 {[%emt 0:00:08]} 51. Bxh4 {[%emt 0:00:04]} 1-0

[Event "Wuerttemberg Rapid Teams 2024"]
[Site "B?blingen, Germany"]
[Date "2024.04.13"]
[Round "4.37"]
[White "Koeller, Horst"]
[Black "Foksha, Mischa"]
[Result "0-1"]
[ECO "B08"]
[WhiteElo "1831"]
[BlackElo "2021"]
[Annotator "RC"]
[PlyCount "62"]
[EventDate "2024.04.13"]
[EventType "team-tourn"]
[SourceTitle "playchess.com"]
[Source "ChessBase"]
[SourceQuality "1"]
[TimeControl "900+5"]

1. d4 {[%emt 0:00:03]} g6 {[%emt 0:01:16]} 2. e4 {[%emt 0:00:04]} Bg7 {[%emt 0:00:04]} 3. Nf3 {[%emt 0:00:05]} d6 {[%emt 0:00:06]} 4. h3 {[%emt 0:00:02]} Nf6 {[%emt 0:00:12]} 5. Nc3 {[%emt 0:00:04]} O-O {[%emt 0:00:05]} 6. Be2 {[%emt 0:00:46]} b6 {[%emt 0:00:29]} 7. O-O {[%emt 0:00:09]} c5 {[%emt 0:00:03]} 8. dxc5 {[%emt 0:00:28]} bxc5 {[%emt 0:00:10]} 9. Re1 {[%emt 0:00:46]} Nc6 {[%emt 0:00:10]} 10. Nd5 {[%emt 0:00:18]} Rb8 {[%emt 0:01:32]} 11. Nxf6+ {[%emt 0:00:06]} Bxf6 {[%emt 0:00:05]} 12. c3 {[%emt 0:00:02]} Re8 {[%emt 0:00:35]} 13. Qc2 {[%emt 0:00:24]} Qa5 {[%emt 0:01:00]} 14. Bc4 {[%emt 0:01:27]} Ba6 {[%emt 0:00:28]} 15. Bf1 {[%emt 0:01:22]} Bxf1 {[%emt 0:02:08]} 16. Rxf1 {[%emt 0:00:19]} c4 {[%emt 0:00:44]} 17. Re1 {[%emt 0:00:42]} Rb7 {[%emt 0:00:03]} 18. Bg5 {[%emt 0:01:09]} Bxg5 {[%emt 0:00:13]} 19. Nxg5 {[%emt 0:00:02]} Qxg5 {[%emt 0:00:03]} 20. Re3 {[%emt 0:00:04]} Reb8 {[%emt 0:00:10]} 21. Rb1 {[%emt 0:00:06]} Ne5 {[%emt 0:00:07]} 22. Rg3 {[%emt 0:00:26]} Qh4 {[%emt 0:00:36]} 23. Qd2 {[%emt 0:00:47]} Qxe4 {[%emt 0:02:39]} 24. Qc1 {[%emt 0:02:23]} Nd3 {[%emt 0:00:00]} 25. Qd2 {[%emt 0:00:09]} Rxb2 {[%emt 0:00:00]} 26. Rxb2 {[%emt 0:00:32]} Rxb2 {[%emt 0:00:00]} 27. Qg5 {[%emt 0:01:25]} Qe1+ {[%emt 0:00:03]} 28. Kh2 {[%emt 0:00:04]} Nxf2 {[%emt 0:00:11]} 29. Re3 {[%emt 0:00:10]} Qh1+ {[%emt 0:00:26]} 30. Kg3 {[%emt 0:00:01]} Nxh3 {[%emt 0:00:33]} 31. Kf3 {[%emt 0:00:59]} Nxg5+ {[%emt 0:03:29]} 0-1

[Event "Wuerttemberg Rapid Teams 2024"]
[Site "B?blingen, Germany"]
[Date "2024.04.13"]
[Round "4.38"]
[White "Foksha, Alexander"]
[Black "Lessmeister, Patrick"]
[Result "0-1"]
[ECO "A48"]
[WhiteElo "1924"]
[BlackElo "1834"]
[Annotator "TA"]
[PlyCount "78"]
[EventDate "2024.04.13"]
[EventType "team-tourn"]
[SourceTitle "playchess.com"]
[Source "ChessBase"]
[SourceQuality "1"]
[TimeControl "900+5"]

{[%evp 13,78,-10,-5,-8,0,-10,1,0,49,-16,0,0,0,-23,0,-25,5,-126,-24,-24,-24,-21,0,0,0,0,0,0,39,47,36,0,8,7,0,0,0,-8,-13,-1,0,0,0,0,29,38,40,50,74,27,41,51,86,-1006,-1004,-1049,-1041,-1034,-1032,-1034,-1034,-1010,-993,-937,-905,-948,-822]} 1. d4 {[%emt 0:00:59]} Nf6 {[%emt 0:01:09]} 2. Nf3 {[%emt 0:00:05]} c5 {[%emt 0:00:06]} 3. e3 {[%emt 0:00:03]} b6 {[%emt 0:00:15]} 4. Bd3 {[%emt 0:00:04]} g6 {[%emt 0:00:09]} 5. b3 {[%emt 0:00:08]} Bg7 {[%emt 0:00:08]} 6. Bb2 {[%emt 0:00:02]} O-O {[%emt 0:00:11]} 7. O-O {[%emt 0:00:03]} Bb7 {[%emt 0:00:50]} 8. Nbd2 {[%emt 0:00:09]} d5 {[%emt 0:00:12]} 9. Qe2 {[%emt 0:00:08]} Nbd7 {[%emt 0:00:15]} 10. c4 {[%emt 0:00:11] The position is equal.} Ne4 {[%emt 0:00:26]} (10... Rc8 $11 {is more appropriate.}) 11. Rfd1 {[%emt 0:00:58]} (11. cxd5 $14 Nxd2 12. Qxd2) 11... e6 {[%emt 0:01:33]} 12. Rac1 {[%emt 0:00:21]} Qe7 {[%emt 0:00:23]} 13. Rc2 {[%emt 0:01:02]} Rac8 {[%emt 0:00:17]} 14. Rdc1 {[%emt 0:00:09]} Rfd8 {[%emt 0:00:35]} 15. Ne5 {[%emt 0:00:50]} (15. cxd5 $11 {keeps the balance.} exd5 16. Ba3) 15... Nxe5 {[%emt 0:00:36]} (15... Nxd2 $17 16. cxd5 Nxb3 17. axb3 Nxe5 (17... Bxd5 18. Nxd7 Rxd7 19. b4 $11) 18. dxe5 Bxd5) 16. dxe5 $11 {[%emt 0:00:02]} Nxd2 {[%emt 0:00:25]} 17. Rxd2 {[%emt 0:00:14]} Qg5 {[%emt 0:01:42] [#] Threatens to win with ...dxc4.} 18. f4 {[%emt 0:00:27]} Qe7 {[%emt 0:00:01]} 19. Rcd1 {[%emt 0:00:18]} Rd7 {[%emt 0:00:07]} 20. cxd5 {[%emt 0:00:22]} exd5 {[%emt 0:00:34]} 21. Bb5 {[%emt 0:00:07]} Rdd8 {[%emt 0:00:05]} 22. a3 {[%emt 0:01:20]} f6 {[%emt 0:00:21]} 23. exf6 {[%emt 0:00:18]} Bxf6 {[%emt 0:00:05]} 24. Bxf6 {[%emt 0:00:11]} Qxf6 {[%emt 0:00:01]} 25. Ba6 {[%emt 0:01:04]} Bxa6 {[%emt 0:00:23]} 26. Qxa6 {[%emt 0:00:02]} Qe7 {[%emt 0:00:01]} 27. Qe2 {[%emt 0:00:26]} Qe6 {[%emt 0:00:11]} 28. Qf3 {[%emt 0:00:29][%cal Rd2d5]} Re8 {[%emt 0:01:43]} 29. Kf2 {[%emt 0:00:13]} c4 {[%emt 0:01:19]} 30. b4 {[%emt 0:00:21]} c3 {[%emt 0:00:11]} 31. Rxd5 {[%emt 0:00:08]} (31. Rc2 $16) 31... c2 {[%emt 0:00:18]} 32. Rc1 {[%emt 0:00:13]} Rc3 {[%emt 0:00:26][%cal Rc3e3]} 33. Rd2 $2 {[%emt 0:00:21][%mdl 8192] White does not recover from this.} (33. Re5 $16 Qf7 34. Rxe8+ Qxe8 35. Qd5+ Qf7 36. Qxf7+ Kxf7 37. Ke2) 33... Rxe3 $19 {[%emt 0:00:59] Black is clearly winning.} 34. Qd5 {[%emt 0:00:10]} Qxd5 {[%emt 0:00:02]} ({Weaker is} 34... Rxa3 35. Rcxc2 Qxd5 36. Rxd5 $17) 35. Rxd5 {[%emt 0:00:01]} Re2+ {[%emt 0:00:12]} ({Worse is} 35... Rxa3 36. Rxc2 Re7 37. g3 $11) 36. Kf1 {[%emt 0:00:02] [#]} Re1+ $3 {[%emt 0:00:07][%mdl 512]} 37. Rxe1 {[%emt 0:00:12]} Rxe1+ {[%emt 0:00:02]} 38. Kxe1 {[%emt 0:00:03]} c1=Q+ {[%emt 0:00:01]} (38... c1=R+ 39. Ke2 Rc7 40. Rd8+ Kf7 41. Kd3 $16) 39. Rd1 {[%emt 0:00:08]} Qc3+ {[%emt 0:00:01] Weighted Error Value: White=0.41/Black=0.17 (very precise) .  Loses game:     	White=1     	---        Mistake:       	White=3     	Black=2      Inaccurate:     	White=1     	Black=4      OK:         	White=9     	Black=6      Best:        	---       	Black=2} 0-1

[Event "Wuerttemberg Rapid Teams 2024"]
[Site "B?blingen, Germany"]
[Date "2024.04.13"]
[Round "4.39"]
[White "Mi Plaza, Luis Leo Manuel"]
[Black "Hadziselimovic, Adnan"]
[Result "0-1"]
[ECO "A38"]
[WhiteElo "1413"]
[BlackElo "2053"]
[Annotator "NA RC"]
[PlyCount "118"]
[EventDate "2024.04.13"]
[EventType "team-tourn"]
[SourceTitle "playchess.com"]
[Source "ChessBase"]
[SourceQuality "1"]
[TimeControl "900+5"]

1. c4 {[%emt 0:00:01]} c5 {[%emt 0:00:03]} 2. Nc3 {[%emt 0:00:01]} g6 {[%emt 0:00:01]} 3. Nf3 {[%emt 0:00:04]} Bg7 {[%emt 0:00:01]} 4. d4 {[%emt 0:00:02]} cxd4 {[%emt 0:00:02]} 5. Nxd4 {[%emt 0:00:01]} Nc6 {[%emt 0:00:01]} 6. e3 {[%emt 0:00:45]} Nf6 {[%emt 0:00:06]} 7. g3 {[%emt 0:00:06]} O-O {[%emt 0:00:02]} 8. Bg2 {[%emt 0:00:01]} Qc7 {[%emt 0:01:05]} 9. Nd5 {[%emt 0:01:18]} Nxd5 {[%emt 0:00:14]} 10. Bxd5 {[%emt 0:00:08]} d6 {[%emt 0:00:31]} 11. Bg2 {[%emt 0:00:50]} Nxd4 {[%emt 0:00:03]} 12. exd4 {[%emt 0:00:03]} Qxc4 {[%emt 0:00:03]} 13. Be3 {[%emt 0:00:36]} Be6 {[%emt 0:00:58]} 14. a3 {[%emt 0:02:08]} Qb5 {[%emt 0:00:47]} 15. b4 {[%emt 0:01:32]} Bc4 {[%emt 0:00:47]} 16. Qd2 {[%emt 0:00:42]} d5 {[%emt 0:00:16]} 17. Bh6 {[%emt 0:00:58]} a5 {[%emt 0:00:17]} 18. Bxg7 {[%emt 0:00:44]} Kxg7 {[%emt 0:00:03]} 19. Rb1 {[%emt 0:00:12]} Qb6 {[%emt 0:01:07]} 20. Bf1 {[%emt 0:00:24]} Qe6+ {[%emt 0:00:13]} 21. Qe3 {[%emt 0:00:18]} Qf5 {[%emt 0:00:31]} 22. Rb2 {[%emt 0:00:25]} axb4 {[%emt 0:00:03]} 23. Rxb4 {[%emt 0:00:18]} b5 {[%emt 0:00:53]} 24. Bxc4 {[%emt 0:01:21]} dxc4 {[%emt 0:00:02]} 25. O-O {[%emt 0:00:35]} e6 {[%emt 0:00:15]} 26. Qe5+ {[%emt 0:00:17]} Qxe5 {[%emt 0:00:03]} 27. dxe5 {[%emt 0:00:01]} Rxa3 {[%emt 0:00:11]} 28. Rxb5 {[%emt 0:00:02]} Rc8 {[%emt 0:00:03]} 29. Rc1 {[%emt 0:00:08]} c3 {[%emt 0:00:02]} 30. Rbb1 {[%emt 0:00:08]} c2 {[%emt 0:00:10]} 31. Rb2 {[%emt 0:00:24]} Rac3 {[%emt 0:00:09]} 32. Kf1 {[%emt 0:00:06]} Kh6 {[%emt 0:00:01]} 33. Ke2 {[%emt 0:00:02]} Kg5 {[%emt 0:00:01]} 34. h3 {[%emt 0:00:19]} Kf5 {[%emt 0:00:02]} 35. Kd2 {[%emt 0:00:01]} Kxe5 {[%emt 0:00:16]} 36. Rbxc2 {[%emt 0:00:13]} Rxc2+ {[%emt 0:00:00]} 37. Rxc2 {[%emt 0:00:03]} Rxc2+ {[%emt 0:00:00]} 38. Kxc2 {[%emt 0:00:00]} Ke4 {[%emt 0:00:00]} 39. Kd1 {[%emt 0:00:00]} Kf3 {[%emt 0:00:00]} 40. Ke1 {[%emt 0:00:00]} f5 {[%emt 0:00:00]} 41. Kf1 {[%emt 0:00:03]} e5 {[%emt 0:00:00]} 42. Ke1 {[%emt 0:00:04]} g5 {[%emt 0:00:00]} 43. Kf1 {[%emt 0:00:03]} h5 {[%emt 0:00:00]} 44. Ke1 {[%emt 0:00:01]} Kg2 {[%emt 0:00:00]} 45. h4 {[%emt 0:00:04]} gxh4 {[%emt 0:00:00]} 46. gxh4 {[%emt 0:00:01]} f4 {[%emt 0:00:00]} 47. Ke2 {[%emt 0:00:02]} e4 {[%emt 0:00:01]} 48. Ke1 {[%emt 0:00:03]} f3 {[%emt 0:00:07]} 49. Kd1 {[%emt 0:00:03]} Kxf2 {[%emt 0:00:02]} 50. Kd2 {[%emt 0:00:01]} e3+ {[%emt 0:00:01]} 51. Kd1 {[%emt 0:00:01]} e2+ {[%emt 0:00:01]} 52. Kc2 {[%emt 0:00:01]} e1=Q {[%emt 0:00:07]} 53. Kd3 {[%emt 0:00:04]} Kg3 {[%emt 0:00:07]} 54. Kd4 {[%emt 0:00:02]} f2 {[%emt 0:00:01]} 55. Kd3 {[%emt 0:00:01]} f1=Q+ {[%emt 0:00:03]} 56. Kd4 {[%emt 0:00:02]} Qd2+ {[%emt 0:00:05]} 57. Kc5 {[%emt 0:00:04]} Qfc1+ {[%emt 0:00:02]} 58. Kb5 {[%emt 0:00:03]} Qdb2+ {[%emt 0:00:01]} 59. Ka4 {[%emt 0:00:02]} Qca1# {[%emt 0:00:07]} 0-1

[Event "Wuerttemberg Rapid Teams 2024"]
[Site "B?blingen, Germany"]
[Date "2024.04.13"]
[Round "5.1"]
[White "Koelle, Tobias"]
[Black "Oberst, Thomas"]
[Result "1/2-1/2"]
[ECO "A21"]
[WhiteElo "2467"]
[BlackElo "2227"]
[Annotator "RC"]
[PlyCount "116"]
[EventDate "2024.04.13"]
[EventType "team-tourn"]
[SourceTitle "playchess.com"]
[Source "ChessBase"]
[SourceQuality "1"]
[TimeControl "900+5"]

1. c4 {[%emt 0:04:14]} e5 {[%emt 0:00:16]} 2. Nc3 {[%emt 0:00:09]} Bb4 {[%emt 0:00:04]} 3. Na4 {[%emt 0:00:05]} Nf6 {[%emt 0:00:13]} 4. a3 {[%emt 0:00:01]} Be7 {[%emt 0:00:03]} 5. d3 {[%emt 0:00:08]} O-O {[%emt 0:00:12]} 6. Nf3 {[%emt 0:00:08]} c6 {[%emt 0:00:16]} 7. e4 {[%emt 0:00:34]} d5 {[%emt 0:00:27]} 8. Qc2 {[%emt 0:00:27]} dxe4 {[%emt 0:00:15]} 9. dxe4 {[%emt 0:00:03]} Qc7 {[%emt 0:00:28]} 10. Be2 {[%emt 0:00:23]} Bg4 {[%emt 0:00:07]} 11. O-O {[%emt 0:00:04]} Nbd7 {[%emt 0:00:00]} 12. b4 {[%emt 0:00:15]} Rfd8 {[%emt 0:00:38]} 13. Bb2 {[%emt 0:00:09]} Bxf3 {[%emt 0:01:30]} 14. Bxf3 {[%emt 0:00:02]} Nf8 {[%emt 0:00:02]} 15. Qc3 {[%emt 0:03:52]} Rd4 {[%emt 0:02:47]} 16. Qc2 {[%emt 0:00:00]} Rd7 {[%emt 0:00:04]} 17. Rfd1 {[%emt 0:00:00]} Rad8 {[%emt 0:00:10]} 18. Rxd7 {[%emt 0:00:00]} Rxd7 {[%emt 0:00:02]} 19. Rd1 {[%emt 0:00:00]} Rxd1+ {[%emt 0:01:22]} 20. Qxd1 {[%emt 0:00:00]} Ne6 {[%emt 0:00:19]} 21. c5 {[%emt 0:00:00]} Ng5 {[%emt 0:00:58]} 22. Nc3 {[%emt 0:00:00]} b6 {[%emt 0:00:22]} 23. cxb6 {[%emt 0:00:00]} axb6 {[%emt 0:00:02]} 24. Qd3 {[%emt 0:00:22]} b5 {[%emt 0:00:21]} 25. Bd1 {[%emt 0:00:08]} Ne6 {[%emt 0:00:19]} 26. Ne2 {[%emt 0:00:09]} h6 {[%emt 0:00:53]} 27. Bb3 {[%emt 0:00:09]} Nf8 {[%emt 0:00:15]} 28. Ng3 {[%emt 0:00:40]} g6 {[%emt 0:00:05]} 29. Qc3 {[%emt 0:00:24]} Bd6 {[%emt 0:00:06]} 30. h3 {[%emt 0:00:38]} N8d7 {[%emt 0:00:14]} 31. a4 {[%emt 0:00:24]} bxa4 {[%emt 0:00:43]} 32. Bxa4 {[%emt 0:00:01]} c5 {[%emt 0:00:03]} 33. Bxd7 {[%emt 0:01:35]} Nxd7 {[%emt 0:00:02]} 34. bxc5 {[%emt 0:00:00]} Bxc5 {[%emt 0:00:15]} 35. Kh2 {[%emt 0:00:16]} Qb6 {[%emt 0:00:27]} 36. f4 {[%emt 0:00:04]} Nf8 {[%emt 0:00:18]} 37. Qxe5 {[%emt 0:00:06]} f6 {[%emt 0:00:38]} 38. Qxf6 {[%emt 0:00:01]} Bg1+ {[%emt 0:00:01]} 39. Kh1 {[%emt 0:00:01]} Qxf6 {[%emt 0:00:00]} 40. Bxf6 {[%emt 0:00:00]} Be3 {[%emt 0:00:05]} 41. Ne2 {[%emt 0:00:05]} Ne6 {[%emt 0:00:05]} 42. g3 {[%emt 0:00:05]} Kf7 {[%emt 0:00:05]} 43. Bb2 {[%emt 0:00:18]} Nc5 {[%emt 0:00:00]} 44. e5 {[%emt 0:00:00]} Nd3 {[%emt 0:00:00]} 45. Bc3 {[%emt 0:00:00]} Ke6 {[%emt 0:00:00]} 46. Kg2 {[%emt 0:00:00]} g5 {[%emt 0:00:01]} 47. Kf3 {[%emt 0:00:00]} Bb6 {[%emt 0:00:01]} 48. Nd4+ {[%emt 0:00:03]} Kd5 {[%emt 0:00:01]} 49. Nf5 {[%emt 0:00:04]} gxf4 {[%emt 0:00:13]} 50. gxf4 {[%emt 0:00:02]} h5 {[%emt 0:00:20]} 51. Ng7 {[%emt 0:00:02]} h4 {[%emt 0:00:05]} 52. Nf5 {[%emt 0:00:01]} Nf2 {[%emt 0:00:01]} 53. Nxh4 {[%emt 0:00:20]} Nxh3 {[%emt 0:00:01]} 54. Nf5 {[%emt 0:00:18]} Ng1+ {[%emt 0:00:23]} 55. Kg4 {[%emt 0:00:13]} Ne2 {[%emt 0:00:00]} 56. Bd2 {[%emt 0:00:09]} Bc7 {[%emt 0:00:08]} 57. Ng3 {[%emt 0:00:15]} Nxf4 {[%emt 0:00:03]} 58. Bxf4 {[%emt 0:00:22]} Bxe5 {[%emt 0:00:01]} 1/2-1/2